bitfinex/quotes_ETHUSD_20240713
["timestamp","ask_amount","ask_price","bid_price","bid_amount"]
[1720895213150,2.7466317,3163.3,3162.9,0.805]
[1720895213350,3.07764664,3163.4,3162.9,0.805]
[1720895214157,2.7466317,3163.3,3162.9,0.805]
[1720895214352,2.74741797,3163.3,3162.9,0.805]
[1720895215077,2.74739521,3163.3,3162.9,0.805]
[1720895215951,3.07841015,3163.4,3163.0,2.4722]
[1720895216192,2.74739521,3163.3,3163.0,2.79992]
[1720895216373,0.33101494,3163.4,3163.0,2.79992]
[1720895216374,3.07841015,3163.4,3163.1,0.805]
[1720895218342,0.33101494,3163.4,3163.1,0.805]
[1720895218603,3.07972281,3163.4,3163.1,0.805]
[1720895218756,3.07972281,3163.4,3163.1,1.165492]
[1720895220985,3.07975813,3163.4,3163.1,1.165492]
[1720895221486,3.07975702,3163.4,3163.1,1.165492]
[1720895221704,3.07975702,3163.4,3163.1,0.360492]
[1720895223676,3.0798448,3163.4,3163.1,0.360492]
[1720895223872,3.0798448,3163.4,3163.0,2.4722]
[1720895224171,0.33101494,3163.4,3163.0,2.4722]
[1720895224496,2.74884119,3163.3,3163.0,2.4722]
[1720895224699,2.74884119,3163.3,3162.8,2.4722]
[1720895224908,2.74884119,3163.3,3162.9,0.55]
[1720895225986,3.07985613,3163.4,3162.9,0.55]
[1720895226193,3.07985613,3163.4,3162.9,0.93272]
[1720895227465,0.33101494,3163.4,3162.9,0.93272]
[1720895227713,3.07998619,3163.4,3162.9,0.93272]
[1720895230418,3.07998619,3163.4,3162.9,1.73772]
[1720895231017,3.08008763,3163.4,3162.9,1.73772]
[1720895231383,3.08010715,3163.4,3162.9,1.73772]
[1720895232506,2.74909221,3163.3,3162.9,1.355]
[1720895232708,2.74909221,3163.3,3162.9,0.55]
[1720895233284,2.74909221,3163.2,3162.9,0.55]
[1720895233605,2.74940275,3163.2,3162.8,2.4722]
[1720895234415,2.74940275,3163.1,3162.5,9.8012]
[1720895234608,2.74940275,3163.1,3162.6,1.53012]
[1720895234774,2.74940275,3163.2,3162.7,2.3812]
[1720895235178,0.33102432,3163.0,3162.7,2.3812]
[1720895235378,0.33102432,3163.0,3162.7,3.1862]
[1720895237622,0.33102432,3163.0,3162.7,2.3812]
[1720895239609,0.33102432,3163.0,3162.7,3.594832]
[1720895244299,0.33102432,3163.0,3162.6,0.55]
[1720895250939,0.33102432,3163.0,3162.5,0.805]
[1720895251138,3.08087526,3163.0,3162.4,3.1862]
[1720895251527,3.08095363,3163.0,3162.4,3.1862]
[1720895254456,3.08058485,3163.0,3162.4,3.1862]
[1720895257439,0.33102432,3163.0,3162.5,0.31862]
[1720895257743,3.08058485,3163.0,3162.4,3.1862]
[1720895257905,0.33102432,3163.0,3162.4,3.1862]
[1720895258313,0.33102432,3163.0,3162.6,0.805]
[1720895258924,0.33102432,3163.0,3162.7,2.2672]
[1720895259526,0.33102432,3163.0,3162.8,0.805]
[1720895259733,0.33102432,3163.0,3162.9,0.30722]
[1720895259939,0.33102432,3163.0,3162.8,0.805]
[1720895281725,0.33102432,3163.0,3162.9,2.4401]
[1720895282093,0.33102432,3163.0,3162.9,2.9901]
[1720895286134,0.33102432,3163.0,3162.9,0.55]
[1720895286549,0.33102432,3163.0,3162.9,2.9901]
[1720895296943,0.33102432,3163.0,3162.9,3.7951]
[1720895297143,0.33102432,3163.0,3162.9,4.17461]
[1720895298364,0.33102432,3163.0,3162.9,3.7951]
[1720895307279,0.33102432,3163.0,3162.9,2.9901]
[1720895307484,0.33102432,3163.0,3162.9,3.7951]
[1720895308194,0.33102432,3163.0,3162.9,2.9901]
[1720895308394,0.33102432,3163.0,3162.9,3.7951]
[1720895315777,0.33102432,3163.0,3162.9,4.17461]
[1720895325413,0.33102432,3163.0,3162.9,6.38776]
[1720895325581,0.33102432,3163.0,3162.9,9.38776]
[1720895337003,0.33102432,3163.0,3162.9,7.17461]
[1720895337227,0.33102432,3163.0,3162.9,9.38776]
[1720895348872,0.33102432,3163.0,3162.9,7.17461]
[1720895373222,0.33102432,3163.0,3162.9,9.38776]
[1720895379533,0.33102432,3163.0,3162.9,7.17461]
[1720895379724,0.33102432,3163.0,3162.9,3.55]
[1720895379926,2.80632432,3163.0,3162.3,2.3954]
[1720895380124,2.4753,3163.0,3162.8,0.805]
[1720895382023,2.4753,3163.0,3162.9,0.55]
[1720895386522,2.4753,3163.0,3162.9,1.355]
[1720895389556,2.72283,3163.0,3162.9,0.55]
[1720895389723,2.72283,3163.0,3162.2,7.42]
[1720895389925,2.4753,3163.0,3162.5,0.805]
[1720895391155,2.4753,3163.0,3162.6,0.55]
[1720895391457,2.4753,3163.0,3162.7,0.805]
[1720895391662,2.4753,3163.0,3162.8,0.55]
[1720895391840,2.4753,3163.0,3162.9,0.805]
[1720895392041,2.4753,3163.0,3162.9,1.355]
[1720895395746,2.80620548,3163.0,3162.9,1.355]
[1720895397682,0.33090548,3163.0,3162.9,1.355]
[1720895400458,0.33090548,3163.0,3162.9,0.55]
[1720895408106,2.69350548,3163.0,3162.9,0.55]
[1720895408261,2.96285603,3163.0,3162.9,0.55]
[1720895408684,2.96285603,3163.0,3162.7,0.55]
[1720895410266,2.69350548,3163.0,3162.7,0.55]
[1720895429798,2.69350548,3163.0,3162.4,0.805]
[1720895430204,3.07908163,3163.0,3162.4,0.805]
[1720895430461,2.74744183,3162.9,3162.2,7.42]
[1720895430601,2.74353473,3162.8,3162.2,7.42]
[1720895430794,5.49097656,3162.8,3162.2,7.42]
[1720895430999,5.49097656,3162.8,3162.0,0.805]
[1720895431430,5.49097656,3162.8,3162.2,0.805]
[1720895431910,2.74353473,3162.8,3162.2,0.805]
[1720895432228,0.27435347,3162.7,3162.2,0.805]
[1720895432429,0.27435347,3162.7,3162.3,0.55]
[1720895433735,0.27435347,3162.7,3162.1,0.805]
[1720895434042,0.27435347,3162.7,3162.2,0.55]
[1720895434240,2.4881,3162.6,3162.2,0.55]
[1720895434424,0.27624535,3162.5,3162.2,0.55]
[1720895434826,2.4881,3162.6,3162.2,0.55]
[1720895443953,2.4881,3162.9,3162.5,0.805]
[1720895444251,2.81900548,3163.0,3162.6,0.55]
[1720895446146,3.37521343,3163.0,3162.6,0.55]
[1720895446534,3.37521343,3163.0,3162.4,0.55]
[1720895446861,6.11828748,3163.0,3162.4,0.55]
[1720895447060,2.4881,3162.9,3162.4,0.55]
[1720895447628,2.4881,3162.9,3162.2,0.55]
[1720895449663,2.4881,3162.9,3162.3,0.805]
[1720895449862,2.4881,3162.9,3162.4,0.55]
[1720895451361,5.2312041,3162.9,3162.4,0.55]
[1720895451532,0.61183175,3162.8,3162.4,0.55]
[1720895453152,2.4881,3162.9,3162.4,0.55]
[1720895454141,3.07405858,3163.0,3162.4,0.55]
[1720895454464,0.33090548,3163.0,3162.5,0.805]
[1720895454688,0.33090548,3163.0,3162.6,0.55]
[1720895455282,0.33090548,3163.0,3162.7,3.1376]
[1720895455447,0.33090548,3163.0,3162.8,0.91876]
[1720895455783,0.33090548,3163.0,3162.9,0.805]
[1720895455950,0.33090548,3163.0,3162.9,1.355]
[1720895456631,2.74393485,3163.5,3162.9,1.355]
[1720895456787,3.07485155,3163.5,3163.0,0.55]
[1720895456977,0.3309167,3163.5,3163.0,0.55]
[1720895458091,0.3309167,3163.5,3163.1,3.1376]
[1720895458295,0.3309167,3163.5,3163.3,0.805]
[1720895458581,0.3309167,3163.5,3163.4,0.55]
[1720895459291,0.3309167,3163.5,3163.2,0.55]
[1720895462482,0.3309167,3163.5,3163.3,0.805]
[1720895462646,0.3309167,3163.5,3163.4,0.55]
[1720895464526,0.3309167,3163.5,3163.2,0.55]
[1720895465072,2.74289706,3164.0,3163.2,0.55]
[1720895465273,0.58644971,3163.9,3163.2,0.55]
[1720895466015,0.58644971,3163.9,3163.3,0.805]
[1720895466170,0.58644971,3163.9,3163.4,0.55]
[1720895469029,2.3166,3163.8,3163.4,0.55]
[1720895469253,2.3166,3163.8,3163.2,0.55]
[1720895472752,2.3166,3163.8,3162.9,1.355]
[1720895474068,2.3166,3163.8,3163.1,0.805]
[1720895474368,2.3166,3163.8,3163.2,0.55]
[1720895474582,0.23166,3163.7,3163.2,0.55]
[1720895474938,2.3166,3163.8,3163.2,0.55]
[1720895475145,0.33087596,3163.6,3163.2,0.55]
[1720895475539,0.33087596,3163.6,3163.3,3.0836]
[1720895476859,0.33087596,3163.6,3163.3,0.805]
[1720895482274,0.33087596,3163.6,3163.5,0.805]
[1720895482441,0.33087596,3163.6,3163.5,1.355]
[1720895483389,0.33087596,3163.6,3163.5,0.55]
[1720895483689,0.33087596,3163.6,3163.4,0.55]
[1720895483855,0.33087596,3163.6,3163.5,0.805]
[1720895484056,0.33087596,3163.6,3163.5,1.355]
[1720895487885,0.33087596,3163.6,3163.5,0.55]
[1720895488091,0.33087596,3163.6,3163.4,0.55]
[1720895495915,2.59987596,3163.6,3162.9,2.4598]
[1720895496122,2.59987596,3163.6,3163.0,1.355]
[1720895496123,0.2599876,3163.5,3163.0,1.355]
[1720895496415,2.59987596,3163.6,3163.0,1.355]
[1720895499631,5.34574125,3163.6,3163.0,1.355]
[1720895500529,2.74586529,3163.5,3163.0,1.355]
[1720895501725,2.74586529,3163.4,3163.0,1.355]
[1720895502096,2.59987596,3163.6,3163.0,1.355]
[1720895502416,2.74917104,3163.5,3163.0,1.355]
[1720895502611,2.59987596,3163.6,3163.0,1.355]
[1720895502917,2.74946884,3163.5,3163.0,1.355]
[1720895503131,2.74946884,3163.4,3163.0,1.355]
[1720895503592,2.74946884,3163.5,3163.0,1.355]
[1720895504108,2.74946884,3163.4,3163.0,1.355]
[1720895504924,2.74945764,3163.4,3163.0,1.355]
[1720895505513,2.59987596,3163.6,3163.0,1.355]
[1720895505692,2.74939016,3163.4,3163.0,1.355]
[1720895506301,2.74939016,3163.4,3163.0,0.55]
[1720895506497,2.74939016,3163.4,3162.9,0.55]
[1720895508929,0.58691236,3163.5,3162.9,0.55]
[1720895509115,2.74906563,3163.4,3162.9,0.55]
[1720895512331,0.58691236,3163.5,3162.9,0.55]
[1720895512627,2.74963673,3163.5,3162.9,0.55]
[1720895512804,2.59987596,3163.6,3162.9,0.55]
[1720895513004,2.7496004,3163.4,3162.9,0.55]
[1720895515045,2.59987596,3163.6,3162.9,0.55]
[1720895515207,2.74963667,3163.4,3162.9,0.55]
[1720895515752,2.74961232,3163.4,3162.9,0.55]
[1720895519035,2.59987596,3163.6,3162.9,0.55]
[1720895519345,2.74943344,3163.4,3162.9,0.55]
[1720895520843,2.74943344,3163.4,3163.0,2.4455]
[1720895521047,2.74943344,3163.4,3163.1,0.55]
[1720895521617,2.74930567,3163.4,3163.1,0.55]
[1720895522142,2.74924176,3163.5,3163.1,0.55]
[1720895524359,2.7491961,3163.5,3163.1,0.55]
[1720895524758,3.08007206,3163.6,3163.1,0.55]
[1720895524921,3.07994313,3163.6,3163.3,2.4455]
[1720895525124,0.33087596,3163.6,3163.5,3.2505]
[1720895525524,0.33087596,3163.6,3163.5,3.8005]
[1720895541685,0.33087596,3163.6,3163.5,2.9955]
[1720895541859,0.33087596,3163.6,3163.5,3.8005]
[1720895542054,0.33087596,3163.6,3163.5,4.18055]
[1720895577055,0.33087596,3163.6,3163.5,7.18055]
[1720895577214,0.33087596,3163.6,3163.5,7.2437598]
[1720895577597,2.74879824,3164.5,3163.6,2.4675]
[1720895577843,5.02919824,3164.7,3164.4,0.805]
[1720895578060,2.2804,3164.7,3164.5,0.55]
[1720895578212,2.2804,3164.6,3164.5,0.55]
[1720895578396,3.11417235,3164.6,3164.5,0.55]
[1720895578738,3.11417235,3164.6,3164.3,0.55]
[1720895579133,0.83377235,3164.6,3164.3,0.55]
[1720895581834,0.83377235,3164.6,3164.2,0.55]
[1720895582203,0.33093813,3164.6,3164.2,0.55]
[1720895584333,0.33093813,3164.6,3164.3,0.805]
[1720895584640,0.33093813,3164.6,3164.4,0.55]
[1720895599530,2.3291,3164.5,3164.1,0.55]
[1720895604526,2.86957188,3164.5,3164.1,0.55]
[1720895604746,2.86957188,3164.5,3164.0,0.55]
[1720895605352,2.86957188,3164.5,3163.8,0.805]
[1720895606061,2.86957188,3164.5,3163.9,0.55]
[1720895609579,3.28571011,3164.5,3163.9,0.55]
[1720895609778,2.3291,3164.3,3163.9,0.55]
[1720895610468,0.33095134,3164.2,3163.9,0.55]
[1720895611692,3.07723881,3164.2,3163.9,0.55]
[1720895612398,0.33095134,3164.2,3163.9,0.55]
[1720895613382,3.07743451,3164.2,3163.9,0.55]
[1720895613575,0.33095134,3164.2,3163.9,0.55]
[1720895614405,3.65445865,3164.2,3163.9,0.55]
[1720895614585,3.65445852,3164.2,3163.9,0.55]
[1720895614787,0.90777218,3164.2,3163.9,0.55]
[1720895615161,3.65445852,3164.2,3163.9,0.55]
[1720895617697,3.65457839,3164.2,3163.9,0.55]
[1720895620308,0.90777218,3164.2,3163.9,0.55]
[1720895620808,0.59836784,3164.1,3163.9,0.55]
[1720895621159,0.33095134,3164.2,3163.9,0.55]
[1720895629987,0.33095134,3164.2,3163.8,0.805]
[1720895630193,0.33095134,3164.2,3164.0,0.805]
[1720895630422,0.33095134,3164.2,3164.0,3.0959]
[1720895630785,0.33095134,3164.2,3164.1,0.55]
[1720895631429,0.33095134,3164.2,3164.1,0.91459]
[1720895638348,0.33095134,3164.2,3164.1,0.55]
[1720895638643,0.33095134,3164.2,3163.8,0.805]
[1720895638810,0.33095134,3164.2,3163.9,0.55]
[1720895644961,0.33095134,3164.2,3163.7,0.55]
[1720895645462,3.07835234,3164.2,3163.7,0.55]
[1720895646953,0.33095134,3164.2,3163.8,2.3335]
[1720895647143,0.33095134,3164.2,3163.9,0.55]
[1720895663685,3.07996326,3164.2,3163.9,0.55]
[1720895663890,0.33095134,3164.2,3163.7,0.55]
[1720895664092,3.07997698,3164.2,3163.7,0.55]
[1720895665104,0.33095134,3164.2,3163.7,0.55]
[1720895665278,3.07997698,3164.2,3163.7,0.55]
[1720895665684,3.07997698,3164.2,3163.7,1.6644]
[1720895666218,3.08012309,3164.2,3163.7,1.6644]
[1720895666988,0.33095134,3164.2,3163.7,1.6644]
[1720895667329,3.08019061,3164.2,3163.7,1.6644]
[1720895669728,3.08019061,3164.2,3163.8,0.805]
[1720895669905,3.08019061,3164.2,3163.9,0.55]
[1720895669906,0.33095134,3164.2,3163.9,0.55]
[1720895675411,3.08057156,3164.2,3163.9,0.55]
[1720895675599,0.33095134,3164.2,3163.9,0.55]
[1720895677598,0.33095134,3164.2,3164.0,2.2909]
[1720895677800,0.33095134,3164.2,3164.0,3.46049]
[1720895678032,0.33095134,3164.2,3164.1,0.55]
[1720895678539,0.33095134,3164.2,3164.1,2.8409]
[1720895683057,0.33095134,3164.2,3164.1,8.05321]
[1720895690727,0.33095134,3164.2,3164.1,5.8409]
[1720895690921,0.33095134,3164.2,3164.1,6.76319]
[1720895692065,0.33095134,3164.2,3164.1,3.76319]
[1720895694149,0.33095134,3164.2,3164.1,2.8409]
[1720895699330,0.33095134,3164.2,3164.1,0.55]
[1720895700549,0.33095134,3164.2,3164.0,0.805]
[1720895702062,0.33095134,3164.2,3164.1,0.55]
[1720895712343,0.33095134,3164.2,3164.1,1.355]
[1720895727799,0.33095134,3164.2,3164.1,3.8484]
[1720895727973,0.33095134,3164.2,3164.1,4.23324]
[1720895729685,0.33095134,3164.2,3164.1,1.73984]
[1720895730502,0.33095134,3164.2,3164.1,1.355]
[1720895731702,0.33095134,3164.2,3164.1,3.8484]
[1720895748886,0.33095134,3164.2,3164.1,1.355]
[1720895764615,0.33095134,3164.2,3164.1,0.55]
[1720895764829,0.33095134,3164.2,3164.0,0.805]
[1720895765126,0.33095134,3164.2,3164.1,0.55]
[1720895765328,0.33095134,3164.2,3163.6,2.4838]
[1720895765507,2.4942,3164.1,3163.3,9.9038]
[1720895765707,2.4942,3164.1,3163.3,7.42]
[1720895765708,2.4942,3163.9,3163.3,7.42]
[1720895766031,2.4942,3163.9,3163.4,0.805]
[1720895766032,5.24406302,3163.9,3163.4,0.805]
[1720895766325,0.33089735,3163.8,3163.4,0.805]
[1720895767816,0.33089735,3163.8,3163.6,0.805]
[1720895768499,0.33089735,3163.8,3163.7,0.55]
[1720895786241,0.33089735,3163.8,3163.7,0.805]
[1720895786445,0.33089735,3163.8,3163.7,1.355]
[1720895787242,0.33089735,3163.8,3163.7,0.55]
[1720895787443,0.33089735,3163.8,3163.7,1.355]
[1720895796363,0.33089735,3163.8,3163.7,1.73831]
[1720895796872,2.4302,3164.7,3163.8,2.3491]
[1720895797194,0.33088654,3164.3,3164.2,0.805]
[1720895797694,0.33088654,3164.3,3164.2,1.355]
[1720895798511,0.33088654,3164.3,3164.2,3.7041]
[1720895798658,0.33088654,3164.3,3164.2,4.07451]
[1720895800602,5.17410984,3165.7,3164.2,9.34993982]
[1720895800809,0.33085897,3165.1,3165.0,0.805]
[1720895801008,5.17410984,3165.7,3165.0,1.355]
[1720895801215,2.98692984,3165.6,3165.0,0.805]
[1720895801371,0.33085108,3165.1,3165.0,0.805]
[1720895801567,0.24302,3165.6,3165.0,1.355]
[1720895801872,0.3308521,3165.1,3165.0,0.805]
[1720895802080,0.24302,3165.6,3165.0,1.355]
[1720895802294,0.33085541,3165.1,3165.0,0.805]
[1720895802525,0.54171298,3165.5,3165.0,1.355]
[1720895802679,0.24302,3165.6,3165.0,1.355]
[1720895802889,0.33085511,3165.1,3165.0,1.355]
[1720895803207,0.24302,3165.6,3165.0,1.355]
[1720895803381,0.33085539,3165.1,3165.0,1.355]
[1720895803585,0.24302,3165.6,3165.0,1.355]
[1720895803784,0.33085594,3165.1,3165.0,1.355]
[1720895804185,0.24302,3165.6,3165.0,1.355]
[1720895804386,0.33085139,3165.5,3165.0,1.355]
[1720895804591,0.33085139,3165.5,3165.0,0.55]
[1720895804786,0.33085139,3165.5,3164.9,0.55]
[1720895809326,0.33085139,3165.5,3164.9,0.92041]
[1720895809525,0.33085139,3165.5,3165.0,0.805]
[1720895816438,0.33085139,3165.5,3164.9,0.55]
[1720895816725,2.3346,3165.4,3164.5,0.805]
[1720895817032,2.3346,3165.4,3164.6,0.87282]
[1720895817930,2.3346,3165.4,3164.7,0.805]
[1720895822061,2.3346,3165.4,3164.6,0.55]
[1720895823619,2.3346,3165.4,3164.7,0.805]
[1720895830217,2.3346,3165.4,3164.6,2.9732]
[1720895830412,2.60114514,3165.4,3164.6,2.9732]
[1720895832965,2.60114514,3165.4,3164.6,0.55]
[1720895833118,2.60114514,3165.4,3164.0,7.42]
[1720895833119,0.805,3165.0,3164.0,7.42]
[1720895833317,2.3346,3164.9,3164.1,0.805]
[1720895833751,0.33084682,3164.8,3164.3,0.805]
[1720895835139,0.33084682,3164.8,3164.4,2.4269]
[1720895835351,0.33084682,3164.8,3164.5,0.805]
[1720895836759,0.33084682,3164.8,3164.7,0.805]
[1720895837058,0.33084682,3164.8,3164.7,1.355]
[1720895839158,0.33084682,3164.8,3164.7,0.55]
[1720895839360,0.33084682,3164.8,3164.6,0.55]
[1720895839931,0.33084682,3164.8,3164.4,2.4269]
[1720895839932,0.33084682,3164.8,3164.5,1.355]
[1720895840327,2.67074682,3164.8,3164.1,2.4269]
[1720895840533,6.48444772,3164.8,3164.0,7.42]
[1720895840830,3.7428215,3164.8,3164.0,7.42]
[1720895841231,6.48444772,3164.8,3164.0,7.42]
[1720895841427,3.7428215,3164.8,3164.0,7.42]
[1720895841631,5.6830825,3164.8,3164.0,7.42]
[1720895842045,5.68278966,3164.8,3164.0,7.42]
[1720895842931,2.74496816,3164.7,3164.0,7.42]
[1720895843339,5.68278966,3164.8,3164.0,7.42]
[1720895843746,0.56827897,3164.7,3164.0,7.42]
[1720895843948,2.74496816,3164.6,3164.0,7.42]
[1720895844146,2.3399,3164.5,3164.0,7.42]
[1720895846140,2.3399,3164.5,3163.8,0.805]
[1720895846357,2.3399,3164.5,3163.9,0.55]
[1720895848044,2.9052497,3164.5,3163.9,0.55]
[1720895848293,2.3399,3164.4,3162.6,2.4269]
[1720895848471,0.805,3163.3,3162.6,2.4269]
[1720895848656,0.3308,3163.2,3162.6,2.4269]
[1720895848975,2.3399,3163.4,3162.6,2.75009]
[1720895849277,2.6708023,3163.4,3162.6,2.75009]
[1720895849473,2.3399,3163.4,3162.6,3.55509]
[1720895849976,2.3399,3163.4,3162.7,0.55]
[1720895855577,0.805,3163.3,3162.7,0.55]
[1720895857418,0.805,3163.1,3162.7,0.55]
[1720895857558,0.805,3163.1,3162.4,3.55]
[1720895857758,0.805,3163.1,3162.4,0.55]
[1720895858013,0.805,3163.1,3162.4,3.55]
[1720895858374,1.11949,3163.3,3162.4,3.55]
[1720895862805,0.345939,3163.2,3162.4,3.55]
[1720895862963,0.805,3163.3,3162.4,3.55]
[1720895863163,0.805,3163.1,3162.4,0.55]
[1720895868945,1.5,3162.6,3161.3,6.67824718]
[1720895869213,1.5,3162.6,3160.5,6.67824718]
[1720895869214,2.6359,3161.4,3160.5,6.67824718]
[1720895869412,0.26359,3161.3,3160.5,6.67824718]
[1720895869728,0.805,3160.7,3160.0,0.106132]
[1720895870705,5.20659,3161.3,3160.0,0.106132]
[1720895872721,5.20659,3161.3,3160.1,0.55]
[1720895874636,1.943,3160.9,3160.1,0.55]
[1720895874811,0.1943,3160.8,3160.1,0.55]
[1720895878770,2.4812,3160.7,3160.0,0.106132]
[1720895879143,5.4812,3160.7,3160.0,0.106132]
[1720895879768,1.943,3160.5,3160.0,0.106132]
[1720895879928,0.1943,3160.4,3160.0,0.106132]
[1720895890678,2.4812,3160.3,3160.0,0.106132]
[1720895890872,1.943,3160.1,3160.0,0.106132]
[1720895900698,0.81,3160.1,3160.0,0.106132]
[1720895904767,4.7,3160.2,3160.0,0.106132]
[1720895904973,0.71812,3160.1,3160.0,0.106132]
[1720895905172,0.81,3160.2,3160.0,0.106132]
[1720895908703,2.3251,3160.3,3160.0,0.106132]
[1720895908907,7.0251,3160.3,3160.0,0.106132]
[1720895915499,9.33660451,3160.3,3160.0,0.106132]
[1720895915822,1.12806045,3160.2,3160.0,0.106132]
[1720895916027,4.12806045,3160.2,3160.0,0.106132]
[1720895917499,6.44456645,3160.2,3160.0,0.106132]
[1720895918414,2.316506,3160.1,3160.0,0.106132]
[1720895918705,5.316506,3160.1,3160.0,0.106132]
[1720895918914,6.33035718,3160.1,3160.0,0.106132]
[1720895919208,4.01385118,3160.1,3160.0,0.106132]
[1720895919417,3.75022389,3160.1,3160.0,0.106132]
[1720895919574,6.75022389,3160.1,3160.0,0.106132]
[1720895919777,6.75243662,3160.1,3160.0,0.106132]
[1720895920408,4.01385118,3160.1,3160.0,0.106132]
[1720895920607,1.01385118,3160.1,3160.0,0.106132]
[1720895922414,4.28309881,3160.1,3160.0,0.106132]
[1720895922612,7.28309881,3160.1,3160.0,0.106132]
[1720895923384,4.01385118,3160.1,3160.0,0.106132]
[1720895923610,1.01385118,3160.1,3160.0,0.106132]
[1720895930634,1.82385118,3160.1,3160.0,0.106132]
[1720895933312,1.9830278,3160.1,3160.0,0.106132]
[1720895951455,1.9830278,3160.1,3159.6,2.3802]
[1720895951456,1.7,3159.8,3159.6,2.3802]
[1720895951654,0.98,3159.7,3158.3,6.67824718]
[1720895951876,3.13044564,3158.9,3158.4,0.55]
[1720895952079,3.13045207,3158.9,3158.4,0.55]
[1720895953266,2.32045207,3158.8,3158.4,0.55]
[1720895953465,2.32045207,3158.8,3158.4,1.27282472]
[1720895953855,2.32045207,3158.9,3158.5,0.81]
[1720895954061,2.32045207,3158.9,3158.6,0.55]
[1720895954363,2.32045207,3158.9,3158.4,1.27282472]
[1720895954560,2.32045207,3158.8,3158.5,2.3165]
[1720895954761,2.32045207,3158.8,3158.4,1.27282472]
[1720895954762,0.81,3159.0,3158.6,0.90893247]
[1720895955082,2.32161709,3158.8,3158.7,2.8665]
[1720895958499,0.81,3159.0,3158.7,2.8665]
[1720895958698,2.32223721,3158.8,3158.7,2.8665]
[1720895960500,2.7431427,3159.0,3158.7,2.8665]
[1720895961903,1.14119318,3159.1,3158.7,2.8665]
[1720895962124,2.74373005,3159.0,3158.7,2.8665]
[1720895962604,2.7437765,3159.0,3158.7,2.8665]
[1720895965307,0.33119318,3159.1,3158.8,2.3165]
[1720895965599,2.74499964,3158.9,3158.8,2.3165]
[1720895965797,2.74499964,3158.9,3158.8,2.8665]
[1720895968508,0.33119318,3159.1,3158.8,2.8665]
[1720895968672,2.74546525,3158.9,3158.8,2.8665]
[1720895969504,0.33119318,3159.1,3158.8,2.8665]
[1720895969505,2.74546525,3159.0,3158.8,2.8665]
[1720895969705,2.74546525,3159.0,3158.9,2.8665]
[1720895970208,3.07665843,3159.1,3158.9,2.8665]
[1720895970701,3.07665843,3159.1,3159.0,2.3165]
[1720895970867,0.33119318,3159.1,3159.0,2.8665]
[1720895972969,3.07689772,3159.1,3159.0,2.8665]
[1720895973175,0.33119318,3159.1,3159.0,2.8665]
[1720895973876,3.07683339,3159.1,3159.0,2.8665]
[1720895974480,3.07685906,3159.1,3159.0,2.8665]
[1720895975004,0.33119318,3159.1,3159.0,2.8665]
[1720895975211,3.07680737,3159.1,3159.0,2.8665]
[1720895978383,3.07656245,3159.1,3159.0,2.8665]
[1720895981585,0.33119318,3159.1,3159.0,2.8665]
[1720895981790,3.07652724,3159.1,3159.0,2.8665]
[1720895982190,3.07652158,3159.1,3159.0,2.8665]
[1720895982793,3.07652158,3159.1,3159.0,2.7665]
[1720895984006,0.33119318,3159.1,3159.0,2.7665]
[1720895986241,0.33119318,3159.1,3158.5,2.2555]
[1720895986521,2.32401173,3158.7,3158.6,0.55]
[1720895987212,2.32401173,3158.7,3158.5,2.2555]
[1720895988324,1.14119318,3159.1,3158.5,2.2555]
[1720895988515,2.32399784,3158.7,3158.5,2.2555]
[1720895989121,2.32399784,3158.6,3158.4,2.2555]
[1720895989332,2.74522245,3158.8,3158.5,0.55]
[1720895991595,0.81,3159.0,3158.5,0.55]
[1720895991923,2.32357994,3158.6,3158.5,0.55]
[1720895992126,0.81,3159.0,3158.5,0.55]
[1720895992294,2.323544,3158.6,3158.5,0.55]
[1720895992914,2.74468083,3158.8,3158.5,0.55]
[1720895993289,2.32338427,3158.6,3158.5,0.55]
[1720895993495,2.74468083,3158.8,3158.5,0.55]
[1720895993732,2.32338209,3158.6,3158.5,0.55]
[1720895993942,2.74468083,3158.8,3158.5,0.55]
[1720895994250,2.32338432,3158.6,3158.5,0.55]
[1720895994439,2.32330325,3158.6,3158.5,0.55]
[1720895994937,0.81,3159.0,3158.5,0.55]
[1720895995104,2.74439024,3158.8,3158.5,0.55]
[1720895995598,3.09982926,3158.8,3158.5,0.55]
[1720895995797,2.74439024,3158.7,3158.4,0.55]
[1720895996095,2.74439024,3158.6,3158.4,0.55]
[1720895996641,2.74439024,3158.6,3158.3,6.67824718]
[1720895996642,3.55439024,3158.6,3158.3,6.67824718]
[1720895997240,2.32236106,3158.4,3158.3,9.14314718]
[1720895997526,2.32236106,3158.5,3158.3,10.6074619]
[1720895997829,2.32236106,3158.6,3158.4,0.55]
[1720895998242,0.81,3159.1,3158.4,0.55]
[1720895998404,2.32238254,3158.6,3158.4,0.55]
[1720895998600,2.32238254,3158.5,3158.4,0.55]
[1720895999151,2.32238254,3158.6,3158.4,0.55]
[1720895999655,2.32238254,3158.5,3158.4,0.55]
[1720896000058,2.74331438,3158.7,3158.4,0.55]
[1720896000533,2.74331438,3158.7,3158.3,2.4649]
[1720896000717,2.32218137,3158.4,3158.3,2.4649]
[1720896000915,0.81,3158.9,3158.3,3.0149]
[1720896001117,2.32218008,3158.4,3158.3,3.0149]
[1720896001433,0.81,3158.7,3158.3,0.55]
[1720896001640,2.32213898,3158.4,3158.1,0.55]
[1720896002632,2.32213898,3158.4,3157.9,0.55]
[1720896003407,2.32213898,3158.4,3158.0,2.4649]
[1720896003608,2.32213898,3158.5,3158.1,0.55]
[1720896004142,2.32142756,3158.4,3158.1,0.55]